Cogmind - Beta 15 --- EXPLORER MODE // 2025.07.02 @ 16:51:33 // Winter2019/RPGLIKE Player: User15V Result: Self-destructed Performance ------------- Evolutions (1) 500 Regions Visited (5) 1000 Robots Destroyed (24) 120 Value Destroyed (365) 365 Prototype IDs (26) 520 Alien Tech Used (0) 0 Bonus (423) 423 TOTAL SCORE: 2928 Bonus ------- Follower Combat Kills 123 Aligned with FarCom 300 Cogmind --------- Core Integrity 600/600 Matter 260/300 Energy 277/280 System Corruption 0% Temperature Cool (4) Movement Flying (31) Location -9/Exiles Parts ------- > --- POWER (1) -------- Cooled Ion Engine > --- PROPULSION (4) --- Flight Unit Flight Unit Flight Unit Flight Unit > --- UTILITY (4) ------ Scrap Suit Weight Redist. System Terrain Scanner > --- WEAPON (3) ------- Heavy Assault Rifle Improved Assault Rifle Improved Assault Rifle > --- INVENTORY (4) ---- Cooled Ion Engine Plasma Cutter Heavy Hammer Peak State ------------ > --- POWER ------------ Cooled Ion Engine > --- PROPULSION ------- Flight Unit Flight Unit Flight Unit Flight Unit > --- UTILITY ---------- Scrap Suit Weight Redist. System Improved Targeting Computer > --- WEAPON ----------- Heavy Assault Rifle Improved Assault Rifle Improved Assault Rifle > --- INVENTORY -------- Plasma Cutter Heavy Hammer [Rating: 27] Favorites ----------- Power Cooled Ion Engine Engine Cooled Ion Engine Propulsion Flight Unit Flight Unit Flight Unit Utility Weight Redist. System Device Weight Redist. System Processor Improved Targeting Computer Weapon Improved Assault Rifle Energy Gun Medium Laser Ballistic Gun Improved Assault Rifle Slashing Weapon Mining Claw Build | -11 -10 -10 -9 -9 -9 ------- Run | Yrd Mat Min Mat Min Exi Slots Evolved 8 | . . 5 3 . . Power . | . . . . . . Propulsion 3 | . . 1 2 . . Utility 3 | . . 3 . . . Weapon 2 | . . 1 1 . . Parts Attached 16 | . 2 . 14 . . Power 3 | . . . 3 . . Engine 3 | . . . 3 . . Core . | . . . . . . Reactor . | . . . . . . Propulsion 4 | . . . 4 . . Treads . | . . . . . . Leg . | . . . . . . Wheel . | . . . . . . Hover . | . . . . . . Flight 4 | . . . 4 . . Utility 4 | . . . 4 . . Device 3 | . . . 3 . . Storage . | . . . . . . Processor 1 | . . . 1 . . Hackware . | . . . . . . Protection . | . . . . . . Artifact . | . . . . . . Weapon 5 | . 2 . 3 . . Energy Gun 1 | . 1 . . . . Energy Cannon . | . . . . . . Ballistic Gun 3 | . . . 3 . . Ballistic Cannon . | . . . . . . Launcher . | . . . . . . Special Weapon . | . . . . . . Impact Weapon . | . . . . . . Slashing Weapon 1 | . 1 . . . . Piercing Weapon . | . . . . . . Special Melee Weapon . | . . . . . . Unidentified Prototypes 3 | . . . 3 . . Parts Lost . | . . . . . . Power . | . . . . . . Propulsion . | . . . . . . Utility . | . . . . . . Weapon . | . . . . . . Highest Loss Streak . | . . . . . . To Critical Strikes . | . . . . . . Average Backups 1 | . . . 2 3 3 Power . | . . . . 1 1 Propulsion . | . . . . . . Utility . | . . . . . . Weapon . | . . . . 1 1 Tool/Special . | . . . . . . Unused Backups 3 | . . . . . 3 Power 1 | . . . . . 1 Propulsion . | . . . . . . Utility . | . . . . . . Weapon 1 | . . . . . 1 Tool/Special 1 | . . . . . 1 Average Slot Usage (%) 44 | . 10 12 57 91 91 Engine 3 | . . . 4 8 8 Flight 15 | . . . 24 33 33 Device 5 | . . . 5 25 25 Processor 1 | . . . 3 . . Ballistic Gun 10 | . . . 15 25 25 Slashing Weapon 6 | . 5 12 4 . . Peak Build Rating 27 | . 1 1 27 26 26 Average Rating 9 | . . 1 13 26 26 On Entrance 9 | . . 1 1 26 26 Naked Turns 21 | . 21 . . . . Heaviest Build 22 | . 2 2 22 22 22 Greatest Support 22 | 3 3 3 22 22 22 Greatest Overweight (x) 1 | . . . 1 . . Average Overweight (x) . | . . . . . . Largest Inventory Capacity 4 | . . 4 4 4 4 Average Capacity 3 | . . 3 4 4 4 Most Carried 4 | . . 2 4 3 3 Average Carried 2 | . . 1 3 3 3 Final Capacity 4 | . . 4 4 4 4 Final Carried 3 | . . 2 3 3 3 Class Distribution -------------------- 57% | Hacker-Mutant 42% | Scavenger-Sprinter Dominant Class ---------------- Hacker-Mutant | -10/Materials Hacker-Mutant | -10/Mines Scavenger-Sprinter | -9/Materials Scavenger-Sprinter | -9/Mines Scavenger-Sprinter | -9/Exiles Resources | -11 -10 -10 -9 -9 -9 ----------- Run | Yrd Mat Min Mat Min Exi Matter Collected 590 | 200 . 20 356 14 . Remotely . | . . . . . . Salvage Created 800 | . 46 15 699 40 . Parts 49 | . 1 5 40 3 . Haulers Intercepted 4 | . . . 4 . . Recyclers Shooed 1 | . . . 1 . . Parts Field Recycled . | . . . . . . Retrieved Matter . | . . . . . . Parts Self-Destructed . | . . . . . . Prevented . | . . . . . . Kills | -11 -10 -10 -9 -9 -9 ------- Run | Yrd Mat Min Mat Min Exi Combat Hostiles Destroyed 15 | . 2 . 12 1 . Melee 3 | . . . 3 . . Guns 12 | . 2 . 9 1 . Classes Destroyed 9 | . 1 1 6 1 . Worker 1 | . . . 1 . . Tunneler 2 | . . 1 . 1 . Hauler 4 | . . . 4 . . Recycler 1 | . . . 1 . . Watcher 2 | . . . 2 . . Swarmer 9 | . 2 . 7 . . Grunt 1 | . . . 1 . . Sentry 4 | . . . 4 . . Assembled 1 | . . . . 1 . Best Kill Streak 4 | . 2 1 4 2 . Combat Bots Only 3 | . 2 . 3 1 . Max Kills in Single Turn 2 | . 1 1 2 1 . Gunslinging 1 | . . . 1 . . Exploded . | . . . . . . Melee 1 | . . . 1 . . Uniques/NPCs Destroyed . | . . . . . . Combat | -11 -10 -10 -9 -9 -9 -------- Run | Yrd Mat Min Mat Min Exi Hostile Shots Fired 92 | . 23 . 69 . . Missed 41 | . 12 . 29 . . Hits 51 | . 11 . 40 . . Projectile 51 | . 11 . 40 . . Critical Strikes 2 | . 1 . 1 . . Damage Taken 366 | . 70 . 296 . . Core 330 | . 63 . 267 . . Absorbed by Shields . | . . . . . . Redirected to Core 103 | . 14 . 89 . . Ignored by Resistances 235 | . 43 . 192 . . Core Remaining (%) 94 | 100 . 89 . . . Volleys Fired 40 | . 4 . 34 2 . Largest 3 | . 1 . 3 3 . Hottest 69 | . 50 . 69 69 . Shots Fired 94 | . 4 . 84 6 . Gun 94 | . 4 . 84 6 . Cannon . | . . . . . . Launcher . | . . . . . . Special . | . . . . . . Kinetic 90 | . . . 84 6 . Thermal 4 | . 4 . . . . Explosive . | . . . . . . Electromagnetic . | . . . . . . Robot Hit Streak 37 | . 4 . 37 5 . Robot Miss Streak 2 | . . . 2 . . Penetration Max . | . . . . . . Secondary Targets 1 | . . . 1 . . Max Gunslinging Chain 1 | . . . 1 . . Shots Hit Robots 90 | . 4 1 82 3 . Core Hits 32 | . 2 . 27 3 . Critical Kills . | . . . . . . Critical Parts Destroyed . | . . . . . . Critical Strikes . | . . . . . . Melee Attacks 57 | . . 42 15 . . Impact . | . . . . . . Slashing 57 | . . 42 15 . . Piercing . | . . . . . . Sneak Attacks 2 | . . 1 1 . . Combat Hostiles . | . . . . . . Follow-up Attacks . | . . . . . . Damage Inflicted 1530 | . 51 50 1389 40 . Guns 1110 | . 51 . 1019 40 . Cannons . | . . . . . . Explosions . | . . . . . . Melee 420 | . . 50 370 . . Ramming . | . . . . . . Kinetic 1059 | . . . 1019 40 . Thermal 51 | . 51 . . . . Explosive . | . . . . . . Electromagnetic . | . . . . . . Impact . | . . . . . . Slashing 420 | . . 50 370 . . Piercing . | . . . . . . Highest Corruption . | . . . . . . Average Corruption . | . . . . . . Corruption Purged . | . . . . . . Corruption Blocked . | . . . . . . Overload Shots . | . . . . . . Overflow Damage 38 | . . 28 10 . . Projectiles . | . . . . . . Explosions . | . . . . . . Melee 38 | . . 28 10 . . Knockbacks . | . . . . . . Impact . | . . . . . . Kinetic . | . . . . . . Secondary . | . . . . . . Self-Inflicted Damage . | . . . . . . Shots . | . . . . . . Rammed . | . . . . . . Targets Rammed . | . . . . . . Kicked . | . . . . . . Crushed . | . . . . . . Highest Temperature 136 | . 15 . 136 23 . Average Temperature 42 | . 15 . 45 10 . Received Heat Transfer 177 | . 30 . 147 . . Siege Activations . | . . . . . . Martial Activations . | . . . . . . Shielding Activations . | . . . . . . Robots Disrupted . | . . . . . . Combat Hostiles . | . . . . . . Robots Corrupted . | . . . . . . Combat Hostiles . | . . . . . . Parts Fried . | . . . . . . Impact Corruptions . | . . . . . . Robots Melted . | . . . . . . Combat Hostiles . | . . . . . . Parts Melted 1 | . 1 . . . . Heat Transferred 148 | . 148 . . . . Parts Sabotaged . | . . . . . . Parts Stolen . | . . . . . . Parts Stripped . | . . . . . . Power Chain Reactions . | . . . . . . Alert | -11 -10 -10 -9 -9 -9 ------- Run | Yrd Mat Min Mat Min Exi Maximum Alert Level 1 | . . . 1 . . Low Security (%) 97 | 100 100 100 95 100 . Level 1 2 | . . . 4 . . Level 2 . | . . . . . . Level 3 . | . . . . . . Level 4 . | . . . . . . Level 5 . | . . . . . . High Security . | . . . . . . Max Security . | . . . . . . Peak Influence 213 | . 50 9 213 54 . Initial 54 | . . 9 . 54 . Average 58 | . 19 . 102 47 . Influence Increases 580 | . 50 7 518 5 . Destroy 0b10 Robot/C 380 | . 40 . 340 . . Destroy 0b10 Robot/NC 50 | . . 5 40 5 . Destroy Leader 132 | . 10 . 122 . . Allied During Kill 15 | . . . 15 . . Destroy Structure 3 | . . 2 1 . . Influence Decreases 580 | . 15 42 320 174 29 Entered New Map 199 | . . 26 . 144 29 Time Decay 361 | . 15 16 300 30 . Lost Ally 20 | . . . 20 . . Squads Dispatched 2 | . . . 2 . . Investigation . | . . . . . . Extermination . | . . . . . . Reinforcement 2 | . . . 2 . . Assault . | . . . . . . Garrison . | . . . . . . Intercept . | . . . . . . Searches Triggered . | . . . . . . Construction Impeded . | . . . . . . Haulers Reinforced . | . . . . . . Active Scanning Responses . | . . . . . . Cargo Convoy Interrupts . | . . . . . . Stealth | -11 -10 -10 -9 -9 -9 --------- Run | Yrd Mat Min Mat Min Exi Distress Signals 1 | . . . 1 . . Communications Jammed . | . . . . . . Distress Signals . | . . . . . . Times Spotted 27 | . 5 . 21 1 . Peak Tracking Total 5 | . 4 . 5 . . Tactical Retreats . | . . . . . . Traps | -11 -10 -10 -9 -9 -9 ------- Run | Yrd Mat Min Mat Min Exi Traps Triggered . | . . . . . . Indirectly . | . . . . . . Trap Hack Attempts . | . . . . . . Triggered . | . . . . . . Disarmed . | . . . . . . Reprogrammed . | . . . . . . Reused . | . . . . . . Traps Extracted . | . . . . . . Installed . | . . . . . . Triggered . | . . . . . . Machines | -11 -10 -10 -9 -9 -9 ---------- Run | Yrd Mat Min Mat Min Exi Machines Disabled . | . . . . . . Max in Single Turn . | . . . . . . Machines Repaired . | . . . . . . Machines Dismantled . | . . . . . . Machines Sabotaged . | . . . . . . Overloaded Fab Kills . | . . . . . . Hacking | -11 -10 -10 -9 -9 -9 --------- Run | Yrd Mat Min Mat Min Exi Machines Accessed 1 | . . . . . 1 Terminals . | . . . . . . Fabricators . | . . . . . . Repair Stations . | . . . . . . Recycling Units . | . . . . . . Scanalyzers . | . . . . . . Garrison Access . | . . . . . . Total Hacks 1 | . . . . . 1 Successful 1 | . . . . . 1 Failed . | . . . . . . Catastrophic . | . . . . . . Database Lockouts . | . . . . . . Manual 1 | . . . . . 1 Terminals . | . . . . . . Fabricators . | . . . . . . Repair Stations . | . . . . . . Recycling Units . | . . . . . . Scanalyzers . | . . . . . . Garrison Access . | . . . . . . Terminal Hacks 1 | . . . . . 1 Proto ID Catalog 1 | . . . . . 1 Fabricator Hacks . | . . . . . . Repair Station Hacks . | . . . . . . Recycling Unit Hacks . | . . . . . . Scanalyzer . | . . . . . . Garrison Access Hacks . | . . . . . . Unauthorized Hacks . | . . . . . . Terminals . | . . . . . . Fabricators . | . . . . . . Repair Stations . | . . . . . . Recycling Units . | . . . . . . Scanalyzers . | . . . . . . Garrison Access . | . . . . . . Data Cores Recovered . | . . . . . . Used . | . . . . . . Hacking Detections . | . . . . . . Full Trace Events . | . . . . . . Feedback Events . | . . . . . . Feedback Blocked . | . . . . . . Robot Schematics Acquired . | . . . . . . Robots Built . | . . . . . . Authchips . | . . . . . . Time . | . . . . . . Total Robot Build Rating . | . . . . . . Part Schematics Acquired . | . . . . . . Parts Built . | . . . . . . Authchips . | . . . . . . Time . | . . . . . . Total Part Build Rating . | . . . . . . Parts Repaired . | . . . . . . Time . | . . . . . . Parts Recycled . | . . . . . . Recycled Matter . | . . . . . . Retrieved Matter . | . . . . . . Retrieved Components . | . . . . . . Parts Scanalyzed . | . . . . . . Part Schematics Acquired . | . . . . . . Parts Damaged . | . . . . . . Bothacking | -11 -10 -10 -9 -9 -9 ------------ Run | Yrd Mat Min Mat Min Exi Used RIF Installer . | . . . . . . Robots Hacked . | . . . . . . Non-combat . | . . . . . . Combat . | . . . . . . Robot Hacks Applied . | . . . . . . Relay Couplers Released . | . . . . . . Fabnet Peak Effective % . | . . . . . . Robots Rewired . | . . . . . . Allies Hacked . | . . . . . . Hacks Repelled . | . . . . . . Allies | -11 -10 -10 -9 -9 -9 -------- Run | Yrd Mat Min Mat Min Exi Total Allies 3 | . . 3 . . . Largest Group 3 | . . 3 3 2 . Highest-Rated Group 40 | . . 40 40 32 . Highest-Rated Ally 16 | . . 16 16 16 . Total Orders . | . . . . . . Ally Attacks 17 | . . . 17 . . Total Damage 154 | . . . 154 . . Kills 5 | . . . 5 . . Allies Corrupted . | . . . . . . Allies Melted . | . . . . . . Intel | -11 -10 -10 -9 -9 -9 ------- Run | Yrd Mat Min Mat Min Exi Active Infowar (turns) 122 | . . . 45 40 37 Terrain 122 | . . . 45 40 37 Robot Analysis Total . | . . . . . . Derelict Logs Recovered 1 | . . . . 1 . Drone Launches . | . . . . . . Drone Recoveries . | . . . . . . Exploration | -11 -10 -10 -9 -9 -9 ------------- Run | Yrd Mat Min Mat Min Exi Turns Passed 840 | 18 48 269 428 40 37 Spaces Moved 996 | 35 73 211 478 81 118 Core 414 | 35 73 211 95 . . Treads . | . . . . . . Legs . | . . . . . . Wheels . | . . . . . . Hover . | . . . . . . Flight 582 | . . . 383 81 118 Fastest Speed 31 | 50 50 50 31 31 31 Average Speed 39 | 50 50 50 36 31 31 Slowest Speed 111 | 50 50 50 111 31 31 Overloaded Moves . | . . . . . . Propulsion Burnouts . | . . . . . . Robots Hopped . | . . . . . . Potential Cave-ins . | . . . . . . Cave-ins Triggered . | . . . . . . Exploration Rate (%) 30 | 3 25 40 52 18 42 Regions Visited 5 Branch Regions 3 Pre-discovered Areas 1 | . . . . 1 . Known Exits Taken 5 | 1 1 1 1 1 . Unknown Exits Taken . | . . . . . . Scrap Searched . | . . . . . . Spaces Dug 10 | . . 10 . . . Terrain Destroyed 10 | . . 10 . . . Melee 10 | . . 10 . . . Projectile . | . . . . . . AOE . | . . . . . . Terrain Rammed . | . . . . . . Walls Destroyed . | . . . . . . Machines Disabled . | . . . . . . Actions | -11 -10 -10 -9 -9 -9 --------- Run | Yrd Mat Min Mat Min Exi Total 1242 | 34 78 289 633 90 118 Wait 108 | . . 36 64 8 . Move 991 | 34 72 210 477 80 118 Hop . | . . . . . . Pick Up 10 | . . 1 9 . . Fast Attach 8 | . 1 . 7 . . Attach 6 | . . . 6 . . Detach . | . . . . . . Swap 2 | . 1 . 1 . . Drop 4 | . . . 4 . . Fire 40 | . 4 . 34 2 . Melee 57 | . . 42 15 . . Ram . | . . . . . . Kick . | . . . . . . Crush . | . . . . . . Escape Stasis . | . . . . . . Rewire . | . . . . . . Trap . | . . . . . . Miscellaneous 16 | . . . 16 . . Route ------- -11/Scrapyard -10/Materials -10/Mines -9/Materials (discovered 4 exits: *Mat x3 / *Min) -9/Mines -9/Exiles (discovered 1 exit: *Min) History --------- Turn | Location | Event 4 | -11/Scrapyard | Identified exit to Materials 4 | -11/Scrapyard | Discovered exit to Materials (range 15) 19 | -11/Scrapyard | Entered Materials 62 | -10/Materials | Identified exit to Mines 62 | -10/Materials | Discovered exit to Mines (range 9) 67 | -10/Materials | Entered Mines 79 | -10/Mines | Found a Scrap Suit stashed away for nefarious purposes 80 | -10/Mines | Upgraded with Propulsion slot (x1) 80 | -10/Mines | Upgraded with Utility slot (x3) 80 | -10/Mines | Upgraded with Weapon slot (x1) 80 | -10/Mines | Found Scrap Suit 114 | -10/Mines | Assisted by bots powering up and referring to "LRC-V3" 297 | -10/Mines | Identified exit to Materials 297 | -10/Mines | Discovered exit to Materials (range 5) 304 | -10/Mines | Build established: Hacker-Mutant 336 | -10/Mines | Entered Materials 336 | -9/Materials | Accompanied by 3 allies 338 | -9/Materials | Reached level 2 338 | -9/Materials | Reached level 3 376 | -9/Materials | Identified exit to Materials 376 | -9/Materials | Discovered exit to Materials (range 3) 409 | -9/Materials | Reached level 4 483 | -9/Materials | Upgraded with Propulsion slot (x1) 486 | -9/Materials | Upgraded with Propulsion slot (x1) 486 | -9/Materials | Upgraded with Weapon slot (x1) 575 | -9/Materials | Discovered exit to Materials (range 5) 645 | -9/Materials | Reached level 5 701 | -9/Materials | Discovered exit to Materials (range 9) 749 | -9/Materials | Identified exit to Mines 749 | -9/Materials | Discovered exit to Mines (range 7) 764 | -9/Materials | Entered Mines 764 | -9/Mines | Accompanied by 2 allies 765 | -9/Mines | Learned location of Storage (-8) 785 | -9/Mines | Assembled infested the area 787 | -9/Mines | Learned 8 Materials zone layouts 797 | -9/Mines | Build established: Scavenger-Sprinter 802 | -9/Mines | Identified exit to Exiles 802 | -9/Mines | Discovered exit to Exiles (range 5) 804 | -9/Mines | Entered Exiles 809 | -9/Exiles | Identified exit to Mines 809 | -9/Exiles | Discovered exit to Mines (range 15) 813 | -9/Exiles | Met 8R-AWN 817 | -9/Exiles | Met EX-HEX 828 | -9/Exiles | Met EX-BIN 832 | -9/Exiles | Aligned with FarCom system 832 | -9/Exiles | Given EX-Vault access code 840 | -9/Exiles | Opened EX-Vault 841 | -9/Exiles | Self-destructed Last Messages --------------- Modified TNC 0b10 Alert Chip Cloak of Protection Skeleton Box Trap Reconfigurator Supersonic Drone Bay Army-in-a-Box PSU Rigger Chronowheel AWS/Thermal Latent Energy Streamer Gui. Plasma Cannon Firepult YOLO Cannon AWS/Gauss XL Autogun Array AWS/Autocannon Field Lobotomy Kit Longsword +1 Deploy-a-Sentry Map ----- +----------------------------------------------------+ | | | | | | | | | | | | | | | | | | | | | | | | | | | | | | | | | | | | | | | | | | | | | | | ?????????????????#????#??##?????###??##??????????? | | ?????????????????????####X####???????????????????? | | ??????????????#??????# @ ##??#???????????????? | | ?????????????????????# #???????????????????? | | ????????????#????#?#?# /! ! ##???#??????????????? | | ????????????????#??#?## ##???????????????????? | | ?????????????###?##??#X ##???????????????????? | | ??????????????#??????## #??#?????????????????? | | ??????????????#?#??#??# #????????????????????? | | ?????????????##????#??# #???###??????????????? | | ???????????##????#????# #??"""""?????????????? | | ???????????#?#???#????# ## """?#???????????? | | ??????????????????????# X""?????????????? | | ??????????##???#?#??#?# ## """#????????????? | | ????????????????####?## #??"""""??#??????????? | | ???????????????""""""?# #?#?###??????????????? | | ????????????#??"""" ## ######???????????????? | | ???????????#??#""X" #?#??#???##??????????? | | ??????????????#" #?#?#?????#??????????? | | ??????????????#" ## #?#????###???????????? | | ?????????????##""""""## ###########??#???????? | | ??????????????##"####?# #?#"""""""#??????#???? | | ????????????#? ???##?# #?#"""""""#??????????? | | ???????????????? ???#?# ###"""""""#??????????? | | ?????????????????????## ###"" """"#?##???????? | | ???????????????????###" """"##???#?????? | | ????????????????###??#" """#??#???????? | +----------------------------------------------------+ Best States ------------- Heat Dissipation 25 Energy Generation 14 Energy Capacity 280 Matter Stores 300 Matter Capacity 300 Sight Range 16 Terrain Scan Range 14 Terrain Scan Density 510 Additional Mass Support 6 Resistance: KI 35 Resistance: TH 35 Resistance: EX 35 Resistance: EM 35 Resistance: I 35 Resistance: S 35 Resistance: P 35 Evasion (%) 63 Targeting Accuracy 6 Offensive Hacking 20 Item Schematics ----------------- None Robot Schematics ------------------ None Fabricated ------------ Nothing Repaired ---------- Nothing Alien Tech Used ----------------- None Achievements -------------- None Challenges ------------ None RPGLIKE | -11 -10 -10 -9 -9 -9 --------- Run | Yrd Mat Min Mat Min Exi Levels Raised 4 | . . . 4 . . XP Earned 13320 | 6000 250 500 5720 500 350 XP Spent 9250 | . . 5900 3350 . . Upgrades 17 | . . 9 8 . . Propulsion Slot 3 | . . 1 2 . . Utility Slot 3 | . . 3 . . . Weapon Slot 2 | . . 1 1 . . Inventory Capacity 4 | . . 4 . . . Terrain Scan Density 5 | . . . 5 . . Protomatter Created 125 | . . . 125 . . Integrity Restored 332 | . . . 332 . . Core 330 | . . . 330 . . Parts 2 | . . . 2 . . Protomatter Decayed 53 | . . . 53 . . Game ------ Seed HardenedJammingAccelerator Manual? 0 Play Time 00:12:06 Cumulative 618.5 hours Start 2025.06.26 @ 01:42:36 End 2025.07.02 @ 16:51:33 Sessions 2 Manual Loads 0 Difficulty Explorer Special Mode Winter2019/RPGLIKE Game No. 252 Rogue 104 Adventurer 111 Explorer 37 Win Type - Total 42 Types 21/5/1/6/2/1/1/1/1/3 Lore% 91 Gallery% 97 Achievement% 96 Wizard Run 0 Options --------- Layout 2 ASCII 0 Keyboard 0 Movement Mouse Keybinds 0 Fullscreen 2 Font 24/Smallcaps Map View 50x44 Zoom Use 0% Tactical HUD 1 Map Filters NONE Filters NONE Steam 1 RUN: 4efce4d5-8d81-41fe-b1a4-5f4665a8b88a